bitfinex-derivatives/quotes_SOLF0:USTF0_20250404
["timestamp","ask_amount","ask_price","bid_price","bid_amount"]
[1743777439094,4.576e-05,116.39,116.37,0.05855045]
[1743777439796,4.576e-05,116.39,116.38,8.5958]
[1743777440096,348.12,116.49,116.37,46.94959518]
[1743777440291,38.29104473,116.5,116.39,38.29104473]
[1743777440492,38.82,116.51,116.41,38.29104473]
[1743777440798,8.5878,116.49,116.46,8.5894]
[1743777441292,0.05599462,116.49,116.44,38.82]
[1743777441491,0.05599462,116.49,116.46,0.0603078]
[1743777441794,0.05599462,116.49,116.47,38.82]
[1743777442097,9.462e-05,116.49,116.48,8.5884]
[1743777442292,77.11104473,116.58,116.48,38.29104473]
[1743777442498,77.11104473,116.58,116.51,8.5862]
[1743777442795,38.82,116.58,116.5,38.82]
[1743777443001,8.5847,116.53,116.47,38.8]
[1743777443600,0.06409547,116.51,116.49,0.061262]
[1743777445802,0.06409547,116.51,116.49,8.648562]
[1743777446101,0.06409547,116.51,116.49,0.061262]
[1743777446301,38.29104473,116.58,116.49,0.061262]
[1743777446802,38.29104473,116.56,116.47,38.8]
[1743777446997,38.29104473,116.54,116.47,38.8]
[1743777447201,8.5867,116.51,116.47,38.8]
[1743777447502,0.06215871,116.5,116.48,0.06077688]
[1743777447706,5.871e-05,116.5,116.48,0.06077688]
[1743777447896,38.29104473,116.6,116.54,8.5833]
[1743777448096,38.29104473,116.6,116.51,38.78]
[1743777448293,347.45104473,116.62,116.51,77.07104473]
[1743777448608,38.78,116.62,116.53,38.29104473]
[1743777448900,38.78,116.62,116.54,38.78]
[1743777449202,0.05827671,116.59,116.56,0.05707654]
[1743777449402,38.29104473,116.65,116.57,38.78]
[1743777449697,8.577,116.64,116.57,38.78]
[1743777449899,61.97953904,116.64,116.57,38.78]
[1743777450303,38.78,116.63,116.57,38.78]
[1743777450799,0.06118063,116.61,116.59,0.0644463]
[1743777451099,8.5795,116.6,116.59,0.0644463]
[1743777451403,0.06118063,116.61,116.59,0.0644463]
[1743777452607,17.1411,116.73,116.6,38.76]
[1743777452608,61.97953904,116.7,116.6,38.76]
[1743777452807,102.23185234,116.72,116.65,8.5758]
[1743777453008,100.73953904,116.72,116.65,8.5758]
[1743777453306,8.5726,116.7,116.65,8.5758]
[1743777453502,100.73953904,116.72,116.65,8.5758]
[1743777453707,100.73953904,116.72,116.64,8.5765]
[1743777454007,309.0,116.77,116.67,0.05560227]
[1743777454008,0.06362859,116.7,116.67,0.05560227]
[1743777454299,0.06362859,116.7,116.63,100.73953904]
[1743777454300,8.5727,116.7,116.66,38.76]
[1743777454605,0.06493317,116.7,116.67,0.05441567]
[1743777454806,8.5734,116.69,116.67,0.05441567]
[1743777455005,0.06493317,116.7,116.67,0.05441567]
[1743777455207,38.80493317,116.7,116.67,0.05441567]
[1743777455703,0.06493317,116.7,116.67,0.05441567]
[1743777456102,100.71953904,116.78,116.69,61.97953904]
[1743777456305,100.71953904,116.8,116.7,38.74]
[1743777456503,8.5683,116.76,116.7,38.74]
[1743777456703,100.71953904,116.8,116.73,8.5696]
[1743777457003,8.5675,116.77,116.7,38.74]
[1743777457204,61.97953904,116.8,116.73,8.5694]
[1743777457499,0.05690259,116.75,116.73,38.74]
[1743777457704,61.97953904,116.78,116.69,38.74]
[1743777457897,61.97953904,116.76,116.69,38.74]
[1743777458136,8.5713,116.72,116.69,38.74]
[1743777458302,61.97953904,116.76,116.69,38.74]
[1743777458503,38.72,116.77,116.69,38.74]
[1743777458703,8.5688,116.75,116.69,38.74]
[1743777459105,0.06483129,116.73,116.71,0.06054726]
[1743777459300,38.72,116.79,116.71,8.5712]
[1743777459505,308.74,116.87,116.72,38.72]
[1743777459705,8.5676,116.77,116.72,38.72]
[1743777459907,61.97953904,116.81,116.72,38.72]
[1743777460217,8.5671,116.77,116.72,38.72]
[1743777460512,61.97953904,116.79,116.72,38.72]
[1743777460709,0.05425627,116.76,116.73,0.05618352]
[1743777461809,8.5692,116.75,116.73,0.05618352]
[1743777462004,0.05425627,116.76,116.73,0.05618352]
[1743777462313,8.5689,116.75,116.73,0.05618352]
[1743777462504,62.03379531,116.76,116.73,0.05618352]
[1743777462710,61.97953904,116.74,116.65,356.0]
[1743777462910,61.97953904,116.74,116.65,38.7]
[1743777463107,38.7,116.75,116.7,8.5718]
[1743777463512,38.7,116.75,116.68,38.7]
[1743777463707,38.7,116.75,116.71,8.5711]
[1743777463904,0.05841043,116.73,116.7,0.05618505]
[1743777464210,0.05841043,116.73,116.71,38.7]
[1743777464407,38.7,116.75,116.7,0.05823057]
[1743777464612,0.06223264,116.73,116.68,38.7]
[1743777464811,0.06223264,116.73,116.71,0.06050264]
[1743777465312,0.06223264,116.73,116.72,8.5707]
[1743777465702,8.5679,116.76,116.72,8.5707]
[1743777465910,61.97953904,116.77,116.71,0.06050264]
[1743777466308,8.5707,116.72,116.71,0.06050264]
[1743777467813,0.05649617,116.73,116.71,0.06050264]
[1743777468112,0.05649617,116.73,116.71,8.63180264]
[1743777468616,0.05649617,116.73,116.71,0.06050264]
[1743777468914,38.68,116.81,116.72,38.68]
[1743777469109,8.5658,116.79,116.75,8.5678]
[1743777469315,8.5658,116.79,116.73,61.97953904]
[1743777470014,61.97953904,116.83,116.73,61.97953904]
[1743777470314,0.05628793,116.77,116.75,0.05872619]
[1743777470615,8.5665,116.78,116.72,38.68]
[1743777470805,0.06131512,116.77,116.75,0.06236]
[1743777471009,61.97953904,116.81,116.75,0.06236]
[1743777471212,0.05718846,116.77,116.75,0.06236]
[1743777471415,38.68,116.82,116.75,38.74236]
[1743777471605,0.05453485,116.77,116.75,38.74236]
[1743777471807,8.5649,116.8,116.77,8.5665]
[1743777472207,8.62061882,116.8,116.77,8.5665]
[1743777472407,0.05571882,116.8,116.78,8.5663]
[1743777472716,0.05571882,116.8,116.75,38.68]
[1743777472912,0.05571882,116.8,116.78,0.0604092]
[1743777473118,8.5659,116.79,116.78,0.0604092]
[1743777473611,61.97953904,116.79,116.7,308.5]
[1743777473817,100.63953904,116.81,116.68,61.97953904]
[1743777473818,61.97953904,116.77,116.68,38.66]
[1743777474036,61.97953904,116.77,116.68,47.2331]
[1743777474220,61.97953904,116.77,116.68,38.66]
[1743777474720,8.62727868,116.74,116.71,0.06255305]
[1743777474919,0.05757868,116.74,116.71,0.06255305]
[1743777475316,8.5704,116.73,116.71,0.06255305]
[1743777475514,0.05757868,116.74,116.71,0.06255305]
[1743777475715,8.5703,116.73,116.71,0.06255305]
[1743777476026,0.05757868,116.74,116.71,0.06255305]
[1743777476227,8.5704,116.73,116.71,0.06255305]
[1743777476416,0.05757868,116.74,116.71,0.06255305]
[1743777477426,8.5705,116.73,116.71,0.06255305]
[1743777477917,38.66,116.72,116.62,417.97953904]
[1743777478623,8.5726,116.7,116.62,417.97953904]
[1743777478928,38.66,116.72,116.64,61.97953904]
[1743777479126,0.06534995,116.67,116.66,8.5751]
[1743777479325,1.4910984,116.81,116.66,61.97953904]
[1743777479525,61.97953904,116.76,116.72,0.05558066]
[1743777479718,61.97953904,116.74,116.66,8.5745]
[1743777479921,38.66,116.73,116.66,8.5745]
[1743777480214,38.66,116.73,116.64,38.66]
[1743777480418,38.66,116.73,116.64,100.63953904]
[1743777480914,0.05580142,116.7,116.67,0.05910442]
[1743777481119,100.63953904,116.76,116.68,38.66]
[1743777481319,70.54633904,116.78,116.73,8.5695]
[1743777481519,61.97953904,116.8,116.68,100.63953904]
[1743777481717,38.66,116.79,116.7,61.97953904]
[1743777481920,38.66,116.79,116.75,8.5681]
[1743777482116,370.41953904,116.82,116.71,38.66]
[1743777482419,0.05417241,116.78,116.77,8.567]
[1743777482817,0.06268029,116.79,116.78,8.5658]
[1743777483125,38.66,116.83,116.74,38.66]
[1743777483326,0.06562063,116.8,116.77,0.06371171]
[1743777483827,0.06562063,116.8,116.77,38.72371171]
[1743777484218,0.06562063,116.8,116.77,0.06371171]
[1743777484421,0.06562063,116.8,116.77,8.63021171]
[1743777484621,0.06562063,116.8,116.77,0.06371171]
[1743777485530,0.06562063,116.8,116.78,8.566]
[1743777485729,0.06562063,116.8,116.77,0.06371171]
[1743777486624,0.06562063,116.8,116.78,8.5658]
[1743777486832,0.06562063,116.8,116.77,0.06371171]
[1743777487030,0.06562063,116.8,116.78,8.5659]
[1743777487225,0.06562063,116.8,116.77,0.06371171]
[1743777488130,0.06562063,116.8,116.77,8.63021171]
[1743777488333,0.06562063,116.8,116.77,0.06371171]
[1743777489526,38.64,116.85,116.77,0.06371171]
[1743777489726,38.64,116.85,116.76,100.61953904]
[1743777489922,8.5608,116.86,116.76,100.61953904]
[1743777490328,61.97953904,116.86,116.76,100.61953904]
[1743777490526,61.97953904,116.84,116.76,38.64]
[1743777490730,61.97953904,116.8,116.7,356.0]
[1743777490936,61.97953904,116.78,116.72,8.5706]
[1743777491227,61.97953904,116.76,116.71,288.08292008]
[1743777491445,8.5704,116.73,116.71,288.08292008]
[1743777491624,38.62,116.75,116.71,288.08292008]
[1743777492132,0.06061432,116.74,116.72,0.0584985]
[1743777492934,62.04015336,116.74,116.72,0.0584985]
[1743777493135,8.57,116.73,116.72,0.0584985]
[1743777493435,8.57,116.73,116.64,61.97953904]
[1743777493436,70.60015336,116.74,116.63,38.62]
[1743777493732,61.97953904,116.72,116.62,370.29953904]
[1743777493931,61.97953904,116.72,116.62,408.91953904]
[1743777494134,8.5718,116.71,116.68,8.5736]
[1743777494534,8.5718,116.71,116.68,0.05979224]
[1743777494535,0.0613778,116.71,116.68,0.05979224]
[1743777495544,0.0613778,116.71,116.64,61.97953904]
[1743777495545,61.97953904,116.7,116.61,38.62]
[1743777495840,38.62,116.71,116.61,38.62]
[1743777496233,38.62,116.71,116.69,8.5725]
[1743777496434,100.59953904,116.74,116.65,38.62]
[1743777496837,0.06483845,116.71,116.68,0.06207618]
[1743777497138,38.70483845,116.71,116.68,0.06207618]
[1743777497441,47.27673845,116.71,116.68,0.06207618]
[1743777497738,38.70483845,116.71,116.68,0.06207618]
[1743777497935,38.70483845,116.71,116.69,8.5725]
[1743777498239,38.70483845,116.71,116.68,0.06207618]
[1743777498438,0.06483845,116.71,116.69,8.5724]
[1743777498631,0.06483845,116.71,116.68,0.06207618]
[1743777501143,61.97953904,116.7,116.61,38.62]
[1743777501343,38.62,116.69,116.61,38.62]
[1743777501546,38.62,116.72,116.62,61.97953904]
[1743777501742,8.5716,116.71,116.68,8.5736]
[1743777501943,8.5716,116.71,116.65,38.62]
[1743777502237,0.05864485,116.68,116.65,38.68277892]
[1743777502844,0.05864485,116.68,116.66,8.5751]
[1743777503142,0.05864485,116.68,116.65,38.68277892]
[1743777503448,0.05864485,116.68,116.67,8.5744]
[1743777503750,38.62,116.75,116.65,38.68277892]
[1743777503940,8.5696,116.74,116.71,8.5711]
[1743777504543,8.5696,116.74,116.7,8.5719]
[1743777504842,0.0649019,116.74,116.71,0.05851042]
[1743777505546,0.0649019,116.74,116.72,8.5703]
[1743777505744,0.0649019,116.74,116.71,0.05851042]
[1743777506044,0.0649019,116.74,116.71,8.62991042]
[1743777506244,0.0649019,116.74,116.71,0.05851042]
[1743777507540,8.5707,116.72,116.71,0.05851042]
[1743777508244,47.1905,116.73,116.71,0.05851042]
[1743777508443,38.62,116.73,116.71,0.05851042]
[1743777509046,38.62,116.73,116.65,38.62]
[1743777509749,38.62,116.73,116.7,8.5718]
[1743777509945,38.62,116.73,116.65,38.62]
[1743777510249,38.62,116.73,116.7,0.06005286]
[1743777510450,38.06756433,116.72,116.7,5.286e-05]
[1743777511047,8.5715,116.71,116.7,5.286e-05]
[1743777513651,17.1315,116.71,116.7,5.286e-05]
[1743777513853,8.5715,116.71,116.7,5.286e-05]
[1743777514355,17.1315,116.71,116.7,5.286e-05]
[1743777514947,8.5715,116.71,116.7,5.286e-05]
[1743777516354,8.63295554,116.72,116.7,5.286e-05]
[1743777516651,0.06195554,116.72,116.7,5.286e-05]
[1743777516852,46.38869684,116.78,116.7,5.286e-05]
[1743777517055,123.05626117,116.78,116.69,38.6]
[1743777517249,123.05626117,116.78,116.7,8.5718]
[1743777517450,8.5703,116.73,116.7,8.5718]
[1743777517645,38.6,116.75,116.69,47.1723]
[1743777517850,38.6,116.75,116.69,38.6]
[1743777518050,8.625221,116.73,116.71,0.06187071]
[1743777518248,0.054821,116.73,116.71,8.63297071]
[1743777518449,0.054821,116.73,116.71,0.06187071]
[1743777518851,0.054821,116.73,116.72,8.5707]
[1743777519543,38.6,116.79,116.71,0.06187071]
[1743777519744,8.5667,116.78,116.72,38.6]
[1743777519954,84.98869684,116.8,116.72,38.6]
[1743777520353,8.5678,116.76,116.72,38.6]
[1743777520657,0.06015029,116.75,116.73,8.62897837]
[1743777520849,8.62895029,116.75,116.73,0.05947837]
[1743777521045,0.06015029,116.75,116.73,0.05947837]
[1743777521556,8.5692,116.74,116.73,0.05947837]
[1743777522255,0.06015029,116.75,116.73,0.05947837]
[1743777523654,0.06015029,116.75,116.74,8.5692]
[1743777523892,5.029e-05,116.75,116.74,17.1292]
[1743777524057,46.38869684,116.82,116.74,8.56]
[1743777524359,46.38869684,116.82,116.81,8.5641]
[1743777525058,46.38869684,116.82,116.77,38.6]
[1743777525257,46.38869684,116.82,116.8,0.05774215]
[1743777525455,46.38869684,116.82,116.74,38.6]
[1743777525657,46.4500462,116.82,116.8,0.05928401]
[1743777525957,8.5656,116.79,116.76,8.5675]
[1743777526355,8.5667,116.78,116.76,0.05448738]
[1743777526560,0.05566904,116.79,116.74,38.6]
[1743777526752,0.05566904,116.79,116.76,0.06477077]
[1743777526959,8.567,116.77,116.76,0.06477077]
[1743777527353,0.06227853,116.79,116.76,0.06477077]
[1743777528659,100.35932443,116.86,116.77,38.58]
[1743777528859,38.58,116.86,116.77,100.35932443]
[1743777529059,8.5623,116.84,116.81,8.5638]
[1743777529555,8.5616,116.85,116.82,8.5631]
[1743777529759,0.06556244,116.84,116.82,8.5631]
[1743777530260,0.06556244,116.84,116.83,8.5626]
[1743777530461,0.06556244,116.84,116.81,0.05845288]
[1743777531752,61.84488687,116.84,116.75,38.56]
[1743777532055,61.77932443,116.84,116.75,38.56]
[1743777532256,61.77932443,116.84,116.76,8.5673]
[1743777532653,8.5671,116.77,116.74,8.5688]
[1743777532863,8.5671,116.77,116.72,38.56]
[1743777533066,0.0602659,116.77,116.74,0.06512479]
[1743777534058,38.56,116.76,116.74,0.06512479]
[1743777534260,8.5697,116.74,116.67,456.33932443]
[1743777534566,8.5697,116.74,116.67,100.33932443]
[1743777534759,8.5689,116.75,116.71,8.5711]
[1743777534959,100.33932443,116.76,116.67,100.33932443]
[1743777535164,100.33932443,116.76,116.66,100.33932443]
[1743777535366,0.05896664,116.73,116.7,0.06500789]
[1743777537167,0.05896664,116.73,116.7,8.63660789]
[1743777537367,0.05896664,116.73,116.7,0.06500789]
[1743777537769,8.62936664,116.73,116.7,0.06500789]
[1743777538264,0.05896664,116.73,116.7,0.06500789]
[1743777538468,0.05896664,116.73,116.72,8.5707]
[1743777539257,46.38869684,116.81,116.72,38.56]
[1743777539560,8.5649,116.8,116.72,100.33932443]
[1743777539765,46.38869684,116.81,116.74,61.77932443]
[1743777540001,46.38869684,116.81,116.75,38.56]
[1743777540466,0.06405564,116.79,116.77,0.06095482]
[1743777540666,8.5663,116.78,116.77,0.06095482]
[1743777540870,0.06405564,116.79,116.71,38.56]
[1743777541170,8.5667,116.78,116.75,8.568]
[1743777541668,100.33932443,116.82,116.71,38.56]
[1743777541865,61.77932443,116.84,116.72,61.77932443]
[1743777542064,61.77932443,116.84,116.75,0.06520642]
[1743777542065,0.06448471,116.78,116.75,0.06520642]
[1743777542265,8.5638,116.82,116.79,8.565]
[1743777542464,38.56,116.84,116.76,38.56]
[1743777542963,8.5644,116.81,116.78,8.5658]
[1743777543270,8.5659,116.79,116.76,47.1273]
[1743777543569,0.06273769,116.81,116.78,0.05809804]
[1743777543862,8.5654,116.8,116.78,0.05809804]
[1743777544070,0.06273769,116.81,116.78,0.05809804]
[1743777544478,8.5653,116.8,116.78,0.05809804]
[1743777544671,38.62273769,116.81,116.78,0.05809804]
[1743777545309,8.5652,116.8,116.78,0.05809804]
[1743777545568,38.62273769,116.81,116.78,0.05809804]
[1743777545872,47.18753769,116.81,116.78,8.62399804]
[1743777546273,38.62273769,116.81,116.78,0.05809804]
[1743777546470,8.5648,116.8,116.78,0.05809804]
[1743777546671,61.77932443,116.8,116.69,61.77932443]
[1743777546973,61.77932443,116.76,116.65,100.31932443]
[1743777547174,38.54,116.75,116.65,100.31932443]
[1743777547375,61.77932443,116.74,116.63,61.77932443]
[1743777547569,8.5735,116.69,116.65,8.5754]
[1743777547770,0.05953157,116.68,116.66,0.06014954]
[1743777547971,61.77932443,116.76,116.66,38.54]
[1743777548275,8.5703,116.73,116.66,38.54]
[1743777548477,38.54,116.75,116.67,61.77932443]
[1743777548777,8.5677,116.77,116.73,8.5696]
[1743777549172,0.05553092,116.76,116.74,0.0581628]
[1743777549377,8.569,116.75,116.74,0.0581628]
[1743777549573,0.05553092,116.76,116.74,0.0581628]
[1743777549774,8.5685,116.75,116.74,0.0581628]
[1743777549977,0.05553092,116.76,116.74,0.0581628]
[1743777550374,0.05553092,116.76,116.75,8.5685]
[1743777550771,0.05553092,116.76,116.74,0.0581628]
[1743777550968,0.05553092,116.76,116.74,38.5981628]
[1743777552073,0.05553092,116.76,116.74,0.0581628]
[1743777552276,100.37485535,116.76,116.66,356.0]
[1743777552570,100.31932443,116.76,116.65,100.31932443]
[1743777552777,38.54,116.76,116.67,61.77932443]
[1743777552974,38.54,116.76,116.69,61.77932443]
[1743777553164,61.77932443,116.8,116.69,61.77932443]
[1743777553368,7.682e-05,116.74,116.71,61.83711874]
[1743777553571,50.35874643,116.81,116.73,61.77932443]
[1743777553771,8.5659,116.79,116.76,8.5675]
[1743777553974,50.35874643,116.81,116.73,61.77932443]
[1743777554164,50.35874643,116.81,116.72,38.54]
[1743777554366,8.5658,116.79,116.76,8.5676]
[1743777554776,0.05838117,116.78,116.76,8.5676]
[1743777555074,0.05838117,116.78,116.77,8.567]
[1743777555869,38.54,116.85,116.8,8.5647]
[1743777556267,8.5635,116.82,116.8,8.5647]
[1743777556678,8.5635,116.82,116.79,8.5652]
[1743777557175,8.5642,116.81,116.79,0.05918613]
[1743777557372,0.06566068,116.82,116.79,0.05918613]
[1743777557579,38.54,116.81,116.79,0.05918613]
[1743777557772,8.5648,116.8,116.79,0.05918613]
[1743777557968,38.54,116.81,116.71,417.77932443]
[1743777558175,8.5672,116.77,116.74,8.5689]
[1743777558370,100.31932443,116.81,116.72,38.52]
[1743777558574,61.77932443,116.79,116.69,61.77932443]
[1743777558984,38.52,116.8,116.69,61.77932443]
[1743777559176,308.3,116.82,116.73,61.84002564]
[1743777559382,8.5652,116.8,116.77,8.5667]
[1743777559879,8.5656,116.79,116.76,8.5675]
[1743777560081,100.29932443,116.83,116.74,38.52]
[1743777560377,8.5656,116.79,116.77,0.05726748]
[1743777560575,38.57417419,116.8,116.77,0.05726748]
[1743777560874,8.5692,116.75,116.7,38.52]
[1743777561079,38.52,116.76,116.71,8.5711]
[1743777561378,38.52,116.76,116.67,61.77932443]
[1743777561679,8.5705,116.73,116.7,8.5721]
[1743777561875,38.52,116.72,116.63,61.77932443]
[1743777562069,38.52,116.72,116.67,8.5738]
[1743777562273,38.52,116.72,116.65,61.77932443]
[1743777562469,47.0908,116.72,116.65,61.77932443]
[1743777562680,100.29932443,116.75,116.65,61.77932443]
[1743777563200,0.06463186,116.71,116.69,0.05924967]
[1743777563674,61.84395629,116.71,116.62,394.52]
[1743777563871,61.77932443,116.71,116.61,61.77932443]
[1743777564077,8.5742,116.68,116.61,100.29932443]
[1743777564379,38.52,116.72,116.63,61.77932443]
[1743777564881,0.06378296,116.69,116.67,8.5741]
[1743777565282,0.06378296,116.69,116.66,0.06049645]
[1743777566370,8.5737,116.68,116.66,0.06049645]
[1743777566575,38.60378296,116.69,116.66,0.06049645]
[1743777566979,8.5744,116.67,116.66,0.06049645]
[1743777567977,8.5762,116.65,116.59,100.29932443]
[1743777568276,100.31932443,116.69,116.62,8.5774]
[1743777568573,61.77932443,116.63,116.53,66.77977711]
[1743777568779,61.77932443,116.69,116.61,8.5785]
[1743777568981,61.77932443,116.69,116.61,38.54]
[1743777569171,0.06015691,116.66,116.64,0.06442457]
[1743777570083,8.5759,116.65,116.64,0.06442457]
[1743777570279,61.77932443,116.65,116.58,38.54]
[1743777570687,8.5792,116.61,116.58,38.54]
[1743777571009,61.77932443,116.65,116.55,38.54]
[1743777571177,8.5804,116.59,116.55,8.5828]
[1743777571382,0.05508653,116.61,116.59,0.05935032]
[1743777571578,347.0,116.66,116.57,38.54]
[1743777571884,8.63722967,116.61,116.59,0.06494393]
[1743777572081,61.77932443,116.65,116.57,47.1214]
[1743777572284,347.0,116.66,116.59,0.05916587]
[1743777572285,0.06168231,116.61,116.59,0.05916587]
[1743777572481,347.0,116.66,116.57,38.54]
[1743777572689,0.06467689,116.61,116.59,0.05887018]
[1743777572878,347.0,116.66,116.57,38.54]
[1743777573118,0.0646911,116.61,116.59,0.06246921]
[1743777573281,61.77932443,116.69,116.6,38.54]
[1743777573783,11.81874643,116.71,116.64,61.77932443]
[1743777573986,11.81874643,116.71,116.68,61.77932443]
[1743777574187,11.81874643,116.71,116.7,61.77932443]
[1743777574383,4.643e-05,116.71,116.7,108.89152443]
[1743777574684,4.643e-05,116.71,116.7,47.1122]
[1743777574885,4.643e-05,116.71,116.69,0.06116614]
[1743777575085,0.05706637,116.72,116.69,0.06116614]
[1743777575289,8.5722,116.7,116.69,0.06116614]
[1743777575502,0.05706637,116.72,116.69,0.06116614]
[1743777576189,0.05706637,116.72,116.71,8.5715]
[1743777576380,34.56999684,116.76,116.7,100.31932443]
[1743777576585,34.56999684,116.76,116.7,38.54]
[1743777577082,8.5689,116.75,116.72,8.5707]
[1743777577285,38.54,116.75,116.67,38.54]
[1743777577482,8.5706,116.73,116.72,0.05701471]
[1743777578423,8.5719,116.71,116.65,356.0]
[1743777578594,100.31932443,116.75,116.67,8.5738]
[1743777579394,38.54,116.75,116.66,100.29932443]
[1743777579584,0.05750655,116.72,116.7,0.05681065]
[1743777579790,0.05750655,116.72,116.71,8.5715]
[1743777580195,6.55e-06,116.72,116.71,8.5715]
[1743777580595,6.55e-06,116.72,116.71,17.1315]
[1743777580795,404.92927484,116.83,116.71,8.56]
[1743777580994,38.52,116.82,116.74,61.77932443]
[1743777581294,8.5646,116.81,116.78,8.5657]
[1743777581899,8.62703082,116.81,116.78,8.63035265]
[1743777582100,8.5654,116.8,116.78,0.06465265]
[1743777582297,0.06243082,116.81,116.78,0.06465265]
[1743777582803,0.06243082,116.81,116.78,8.63055265]
[1743777583005,0.06243082,116.81,116.78,0.06465265]
[1743777583804,8.5656,116.79,116.78,0.06465265]
[1743777584301,8.5679,116.76,116.73,8.5698]
[1743777584503,38.52,116.8,116.7,61.77932443]
[1743777584903,8.567,116.78,116.7,61.77932443]
[1743777585103,38.52,116.8,116.72,61.77932443]
[1743777585304,38.52,116.8,116.72,100.29932443]
[1743777585608,0.06107179,116.77,116.75,0.0551283]
[1743777586409,8.62857179,116.77,116.75,0.0551283]
[1743777586609,38.56107179,116.77,116.75,0.0551283]
[1743777586813,431.95864886,116.76,116.6,356.0]
[1743777587006,61.77932443,116.7,116.6,417.77932443]
[1743777587209,38.5,116.69,116.58,100.27932443]
[1743777587707,38.5,116.69,116.58,61.77932443]
[1743777587911,0.06300179,116.65,116.62,0.05928607]
[1743777588114,0.06300179,116.65,116.6,61.77932443]
[1743777588304,0.06300179,116.65,116.62,8.6353928]
[1743777589030,8.63890179,116.65,116.62,0.0577928]
[1743777589210,0.06300179,116.65,116.62,0.0577928]
[1743777590111,0.06300179,116.65,116.64,8.5766]
[1743777590708,38.52,116.7,116.66,8.5746]
[1743777591310,8.5733,116.69,116.65,8.5755]
[1743777591502,38.52,116.7,116.64,38.5]
[1743777591700,38.52,116.7,116.62,61.77932443]
[1743777591901,8.6359009,116.68,116.66,0.06540406]
[1743777592099,0.0619009,116.68,116.66,0.06540406]
[1743777592303,8.5744,116.67,116.66,0.06540406]
[1743777592507,0.0619009,116.68,116.58,61.77932443]
[1743777592707,38.5,116.67,116.58,100.27932443]
[1743777592910,8.577,116.64,116.58,100.27932443]
[1743777593110,8.577,116.64,116.6,8.5788]
[1743777593412,8.5777,116.63,116.56,61.77932443]
[1743777593716,0.06188912,116.63,116.61,0.06288833]
[1743777593907,0.05840734,116.63,116.61,0.05440855]
[1743777594711,0.05840734,116.63,116.62,8.5781]
[1743777595607,0.05840734,116.63,116.61,8.63290855]
[1743777595813,0.05840734,116.63,116.61,0.05440855]
[1743777596011,0.05840734,116.63,116.62,8.5781]
[1743777596214,38.52,116.69,116.61,0.05440855]
[1743777596509,8.574,116.68,116.6,61.77932443]
[1743777596715,38.52,116.69,116.6,61.77932443]
[1743777596914,8.5747,116.67,116.6,61.77932443]
[1743777597110,38.52,116.69,116.59,38.5]
[1743777597306,0.05622971,116.65,116.63,8.577]
[1743777597552,0.05622971,116.65,116.59,38.5]
[1743777597712,0.05622971,116.65,116.63,0.05768392]
[1743777597912,0.05622971,116.65,116.64,8.5766]
[1743777599419,0.05622971,116.65,116.63,0.05768392]
[1743777599420,0.05622971,116.65,116.63,8.63478392]
[1743777599738,0.05622971,116.65,116.63,0.05768392]
[1743777599913,47.0926,116.7,116.63,0.05768392]
[1743777600113,47.0926,116.7,116.62,100.29932443]
[1743777600314,38.52,116.71,116.64,61.77932443]
[1743777600517,61.77932443,116.7,116.62,38.52]
[1743777601016,8.5755,116.66,116.62,38.52]
[1743777601212,8.5755,116.66,116.65,0.05667282]
[1743777601414,0.06065997,116.67,116.65,0.05667282]
[1743777601920,8.5751,116.66,116.65,0.05667282]
[1743777602216,0.06065997,116.67,116.65,0.05667282]
[1743777603016,8.5751,116.66,116.65,0.05667282]
[1743777604020,0.06065997,116.67,116.59,38.52]
[1743777604209,100.29932443,116.68,116.59,38.52]
[1743777604414,38.52,116.68,116.59,38.52]
[1743777604813,61.77932443,116.7,116.59,38.52]
[1743777605054,8.5726,116.7,116.62,61.77932443]
[1743777605315,38.52,116.74,116.64,61.77932443]
[1743777605719,61.77932443,116.73,116.63,38.52]
[1743777606112,61.77932443,116.69,116.58,61.77932443]
[1743777606320,61.77932443,116.67,116.56,38.52]
[1743777606517,0.06227339,116.65,116.62,0.0617025]
[1743777606716,0.06498192,116.63,116.62,0.0617025]
[1743777607810,8.64228192,116.63,116.62,0.0617025]
[1743777608011,0.06498192,116.63,116.62,0.0617025]